Workbook

Sheet ADA DPAC AUGUST 2025 CAA
A1: DEPARTMENT OF TRANSPORTATION - CALTRANS
A2: DBE Commitment at Award (CAA) on Federally Funded Architectural & Engineering Contracts - October 1, 2024 - August 31, 2025
A4: Total Award Amount Year-to-Date (YTD) | C4: Total DBE Commitment Amount YTD | F4: Total Prime Contracts Awarded YTD
A5: 525378775.7 | C5: =SUM(C7:C18) -> 132506688.6 | F5: =SUM(C139:C148,I139:I148,F139:F148) -> 34
A6: Groups | C6: Commitment Dollars YTD | D6: Firms YTD | E6: Contracts YTD | F6: % of Contracts | G6: % of DBE $ | H6: % of Total $
A7: Hispanic American Male | C7: =SUMIF(D26:D55,"m", C26:C55) -> 34418305.88 | D7: =COUNTIF(D26:D55,"M") -> 23 | E7: =SUMIF(D26:D55,"M",E26:E55) -> 58 | F7: =E7/E20 -> 0.3152173913 | G7: =C7/C5 -> 0.2597476871 | H7: =C7/A5 -> 0.06551141285
A8: Hispanic American Female | C8: =SUMIF(D26:D55,"F", C26:C55) -> 4193366.44 | D8: =COUNTIF(D26:D55,"F") -> 6 | E8: =SUMIF(D26:D55,"F",E26:E55) -> 11 | F8: =E8/E20 -> 0.0597826087 | G8: =C8/C5 -> 0.0316464511 | H8: =C8/A5 -> 0.007981606098
A9: African American Male | C9: =SUMIF(D63:D69,"m", C63:C69) -> 5485561.32 | D9: =COUNTIF(D63:D69,"M") -> 4 | E9: =SUMIF(D63:D69,"M",E63:E69) -> 7 | F9: =E9/E20 -> 0.03804347826 | G9: =C9/C5 -> 0.04139837302 | H9: =C9/A5 -> 0.01044115517
A10: African American Female | C10: =SUMIF(D63:D69,"F", C63:C69) -> 1315000 | D10: =COUNTIF(D63:D69,"F") -> 2 | E10: =SUMIF(D63:D69,"F",E63:E69) -> 3 | F10: =E10/E20 -> 0.01630434783 | G10: =C10/C5 -> 0.00992402734 | H10: =C10/A5 -> 0.002502956078
A11: Asian Pacific Male | C11: =SUMIF(D86:D102,"m", C86:C102) -> 23531918.57 | D11: =COUNTIF(D86:D102,"M") -> 9 | E11: =SUMIF(D86:D102,"M",E86:E102) -> 25 | F11: =E11/E20 -> 0.1358695652 | G11: =C11/C5 -> 0.1775904207 | H11: =C11/A5 -> 0.04479038678
A12: Asian Pacific Female | C12: =SUMIF(D86:D102,"F", C86:C102) -> 12097516.58 | D12: =COUNTIF(D86:D102,"F") -> 7 | E12: =SUMIF(D86:D102,"F",E86:E102) -> 14 | F12: =E12/E20 -> 0.07608695652 | G12: =C12/C5 -> 0.09129740326 | H12: =C12/A5 -> 0.02302627578
A13: Subcontinent Asian Male | C13: =SUMIF(D72:D83,"m", C72:C83) -> 24942230.71 | D13: =COUNTIF(D72:D83,"M") -> 7 | E13: =SUMIF(D72:D83,"M",E72:E83) -> 21 | F13: =E13/E20 -> 0.1141304348 | G13: =C13/C5 -> 0.1882337487 | H13: =C13/A5 -> 0.0474747589
A14: Subcontinent Asian Female | C14: =SUMIF(D72:D83,"F", C72:C83) -> 2428537.05 | D14: =COUNTIF(D72:D83,"F") -> 4 | E14: =SUMIF(D72:D83,"F",E72:E83) -> 8 | F14: =E14/E20 -> 0.04347826087 | G14: =C14/C5 -> 0.01832765633 | H14: =C14/A5 -> 0.004622449863
A15: Native American Male | C15: =SUMIF(D58:D60,"m", C58:C60) -> 870000 | D15: =COUNTIF(D58:D60,"M") -> 2 | E15: =SUMIF(D58:D60,"M",E58:E60) -> 2 | F15: =E15/E20 -> 0.01086956522 | G15: =C15/C5 -> 0.006565706301 | H15: =C15/A5 -> 0.001655948128
A16: Native American Female | C16: =SUMIF(D58:D60,"F", C58:C60) -> 0 | D16: =COUNTIF(D58:D60,"F") -> 0 | E16: =SUMIF(D58:D60,"F",E58:E60) -> 0 | F16: =E16/E20 -> 0 | G16: =C16/C5 -> 0 | H16: =C16/A5 -> 0
A17: Non Minority Women | C17: =SUMIF(D109:D134,"F", C109:C134) -> 23224252.01 | D17: =COUNTIF(D109:D134,"F") -> 24 | E17: =SUMIF(D109:D134,"F",E109:E134) -> 35 | F17: =E17/E20 -> 0.1902173913 | G17: =C17/C5 -> 0.1752685262 | H17: =C17/A5 -> 0.04420477774
A18: Non Minority Men | C18: =SUMIF(D105:D106,"F", C105:C106) -> 0 | D18: =COUNTIF(D105:D106,"F") -> 0 | E18: =SUMIF(D105:D106,"F",E105:E106) -> 0 | F18: =E18/E20 -> 0 | G18: =C18/C5 -> 0 | H18: =C18/A5 -> 0
A20: Total | C20: =SUM(C7:C18) -> 132506688.6 | D20: =SUM(D7:D19) -> 88 | E20: =SUM(E7:E19) -> 184
A21: Total Prime Contracts Awarded | C21: =SUM(C139:C148,F139:F148,I139:I148) -> 34
A22: Red Italic = DBE firm as Prime
A23: BOLD = women
A25: Hispanic American | C25: Dollars | D25: M/F | E25: # of Contracts | F25: Contract # | G25: # of Primes | H25: Prime Name | I25: Districts
A26: 365 PROJECT CONTROLS CONSULTING | C26: ='[1]DPAC A&E Worksheet'!G8 -> 120000 | D26: M | E26: 1 | F26: =FETCHCOMMENT(E26) -> 07A6016 | G26: 1 | H26: =FETCHCOMMENT(G26) -> Jacobs Project Management Co. | I26: 7
A27: ADV-SOC, INC. | C27: ='[1]DPAC A&E Worksheet'!G18 -> 1287210.25 | D27: M | E27: 4 | F27: =FETCHCOMMENT(E27) -> 11A3999 12A2206 04A7117 12A2210 | G27: 3 | H27: =FETCHCOMMENT(G27) -> KLEINFELDER CONSTRUCTION SERVICES, INC. FOUNTAINHEAD CONSULTING HDR ENGINEERING INC | I27: 59
A28: ADVANCED TECHNOLOGY | C28: ='[1]DPAC A&E Worksheet'!G24 -> 240000 | D28: M | E28: 1 | F28: =FETCHCOMMENT(E28) -> 07A6010 | G28: 1 | H28: =FETCHCOMMENT(G28) -> GEOSYNTEC CONSULTANTS INC | I28: 7
A29: AIX CONSULTING, INC. | C29: ='[1]DPAC A&E Worksheet'!G39 -> 3050963.7 | D29: M | E29: 5 | F29: =FETCHCOMMENT(E29) -> 11A3999 12A2206 04A7117 12A2210 59A1332 | G29: 3 | H29: =FETCHCOMMENT(G29) -> KLEINFELDER CONSTRUCTION SERVICES, INC. FOUNTAINHEAD CONSULTING HDR ENGINEERING INC | I29: 4,11,12,59
A30: AMC INC | C30: ='[1]DPAC A&E Worksheet'!G45 -> 180000 | D30: M | E30: 1 | F30: =FETCHCOMMENT(E30) -> 12A2203 | G30: 1 | H30: =FETCHCOMMENT(G30) -> JACOBS PROJECT MANAGMENT | I30: 12
A31: BARGAS ENVIRONMENTAL | C31: ='[1]DPAC A&E Worksheet'!C13 -> 2949098.02 | D31: F | E31: 4 | F31: =FETCHCOMMENT(E31) -> 04A7044 04A7071 04A7106 06A3116 | G31: 3 | H31: =FETCHCOMMENT(G31) -> KLEINFELDER, INC. AECOM TECHNICAL SERVICES, INC. PARSONS TRANSPORTATION GROUP, INC. | I31: 4
A32: BAYSIDE ENGINEERING | C32: ='[1]DPAC A&E Worksheet'!G52 -> 240000 | D32: M | E32: 1 | F32: =FETCHCOMMENT(E32) -> 07A6010 | G32: 1 | H32: =FETCHCOMMENT(G32) -> GEOSYNTEC CONSULTANTS INC | I32: 7
A33: CABRINHA HEARN | C33: ='[1]DPAC A&E Worksheet'!G60 -> 330000 | D33: M | E33: 1 | F33: =FETCHCOMMENT(E33) -> 07A6087 | G33: 1 | H33: =FETCHCOMMENT(G33) -> Michael Baker International, Inc. | I33: 7
A34: EARTHVIEW SCIENCE | C34: ='[1]DPAC A&E Worksheet'!C20 -> 185000 | D34: F | E34: 1 | F34: =FETCHCOMMENT(E34) -> 04A7044 | G34: 1 | H34: =FETCHCOMMENT(G34) -> KLEINFELDER, INC. | I34: 4
A35: FERNANDEZ CONSTRUCTION | C35: ='[1]DPAC A&E Worksheet'!G68 -> 168000 | D35: M | E35: 1 | F35: =FETCHCOMMENT(E35) -> 12A2212 | G35: 1 | H35: =FETCHCOMMENT(G35) -> PARSONS TRANSPORTATION GROUP, INC. | I35: 12
A36: FOUNTAINHEAD CONSULTING CORP | C36: ='[1]DPAC A&E Worksheet'!G83 -> 8959963.7 | D36: M | E36: 9 | F36: =FETCHCOMMENT(E36) -> 12A2203 59A1319 11A3999 12A2206 12A2212 12A2210 59A1332 07A6021 07A6016 | G36: 8 | H36: =FETCHCOMMENT(G36) -> JACOBS PROJECT MANAGEMENT PARSONS TRANSPORTATION GROUP, INC. KLEINFELDER CONSTRUCTION SERVICES, INC. FOUNTAINHEAD CONSULTING PARSONS TRANSPORTATION GROUP, INC. HDR ENGINEERING INC TRC ENGINEERS INC JACOBS PROJECT MANAGEMENT CO | I36: 7,11,12,59
A37: FRANCISON CONSULTING | C37: ='[1]DPAC A&E Worksheet'!G89 -> 180000 | D37: M | E37: 1 | F37: =FETCHCOMMENT(E37) -> 07A6021 | G37: 1 | H37: =FETCHCOMMENT(G37) -> TRC ENGINEERS INC | I37: 7
A38: LA SALLE SOLUTIONS | C38: ='[1]DPAC A&E Worksheet'!G105 -> 1881292.9 | D38: M | E38: 6 | F38: =FETCHCOMMENT(E38) -> 12A2203 11A3999 12A2210 07A6021 07A6016 08A3848 | G38: 5 | H38: =FETCHCOMMENT(G38) -> JACOBS PROJECT MANAGEMENT KLEINFELDER CONSTRUCTION SERVICES, INC. HDR Engineering, Inc. TRC ENGINEERS INC NV5 INC | I38: 7,8,11,12
A39: MARTINEZ GROSPATIAL INC | C39: ='[1]DPAC A&E Worksheet'!G117 -> 480306.75 | D39: M | E39: 1 | F39: =FETCHCOMMENT(E39) -> 59A1330 | G39: 1 | H39: =FETCHCOMMENT(G39) -> TOWILL INC | I39: 59
A40: MESA BIOLOGICAL LLC | C40: ='[1]DPAC A&E Worksheet'!G111 -> 476627.44 | D40: M | E40: 1 | F40: =FETCHCOMMENT(E40) -> 06A3116 | G40: 1 | H40: =FETCHCOMMENT(G40) -> PARSONS TRANSPORTATION GROUP, INC. | I40: 6
A41: MONTEZ GROUP, INC. | C41: ='[1]DPAC A&E Worksheet'!G126 -> 1725000 | D41: M | E41: 3 | F41: =FETCHCOMMENT(E41) -> 59A1319 59A1325 59A1324 | G41: 2 | H41: =FETCHCOMMENT(G41) -> PARSONS TRANSPORTATION GROUP, INC. HDR CONSTRUCTION CONTROL CORPORATION | I41: 59
A42: MTGL INC | C42: ='[1]DPAC A&E Worksheet'!C27 -> 372000 | D42: F | E42: 2 | F42: =FETCHCOMMENT(E42) -> 12A2203 12A2210 | G42: 2 | H42: =FETCHCOMMENT(G42) -> JACOBS PROJECT MANAGEMENT HDR Engineering, Inc. | I42: 12
A43: NOMAD ECOLOGY, LLC | C43: ='[1]DPAC A&E Worksheet'!G132 -> 740000 | D43: M | E43: 1 | F43: =FETCHCOMMENT(E43) -> 04A7044 | G43: 1 | H43: =FETCHCOMMENT(G43) -> KLEINFELDER, INC. | I43: 4
A44: PEC WATER INC | C44: ='[1]DPAC A&E Worksheet'!G139 -> 580000 | D44: M | E44: 1 | F44: =FETCHCOMMENT(E44) -> 04A7117 | G44: 1 | H44: =FETCHCOMMENT(G44) -> HDR Engineering, Inc. | I44: 4
A45: R T ENGINEERING & ASSOCIATES | C45: ='[1]DPAC A&E Worksheet'!C34 -> 102000 | D45: F | E45: 1 | F45: =FETCHCOMMENT(E45) -> 12A2210 | G45: 1 | H45: =FETCHCOMMENT(G45) -> HDR Engineering, Inc. | I45: 12
A46: RUZ CONSULTING ENGINEERING | C46: ='[1]DPAC A&E Worksheet'!G147 -> 180000 | D46: M | E46: 1 | F46: =FETCHCOMMENT(E46) -> 07A6016 | G46: 1 | H46: =FETCHCOMMENT(G46) -> JACOBS PROJECT MANAGEMENT CO | I46: 7
A47: SAFE2CORE | C47: ='[1]DPAC A&E Worksheet'!C40 -> 110268.42 | D47: F | E47: 1 | F47: =FETCHCOMMENT(E47) -> 03A3892 | G47: 1 | H47: =FETCHCOMMENT(G47) -> GEOCON CONSULTANTS INC | I47: 3
A48: SAMA CONSTRUCTION | C48: ='[1]DPAC A&E Worksheet'!G155 -> 450292.9 | D48: M | E48: 1 | F48: =FETCHCOMMENT(E48) -> 08A3848 | G48: 1 | H48: =FETCHCOMMENT(G48) -> NV5 INC | I48: 8
A49: SIX RIVERS GEOSCIENCES | C49: ='[1]DPAC A&E Worksheet'!C50 -> 475000 | D49: F | E49: 2 | F49: =FETCHCOMMENT(E49) -> 04A7044 04A7117 | G49: 2 | H49: =FETCHCOMMENT(G49) -> KLEINFELDER, INC. HDR ENGINEERING INC | I49: 4
A50: SJ CONSTRUCTION MANAGEMENT | C50: ='[1]DPAC A&E Worksheet'!G169 -> 3372284.72 | D50: M | E50: 3 | F50: =FETCHCOMMENT(E50) -> 59A1325 59A1324 06A3121 | G50: 1 | H50: =FETCHCOMMENT(G50) -> HDR CONSTRUCTION CONTROL CORPORATION | I50: 6,59
A51: SYRUSA ENGINEERING INC | C51: ='[1]DPAC A&E Worksheet'!G183 -> 2547439.35 | D51: M | E51: 7 | F51: =FETCHCOMMENT(E51) -> 12A2203 11A3999 12A2210 07A6009 07A6021 07A6016 08A3848 | G51: 5 | H51: =FETCHCOMMENT(G51) -> JACOBS PROJECT MANAGEMENT KLEINFELDER CONSTRUCTION SERVICES, INC. HDR Engineering, Inc. TRC ENGINEERS INC NV5 INC | I51: 7,8,11,12
A52: UNICO ENGINEERING CONSULTING | C52: ='[1]DPAC A&E Worksheet'!G191 -> 2916639.45 | D52: M | E52: 3 | F52: =FETCHCOMMENT(E52) -> 03A3892 03A3914 06A3121 | G52: 3 | H52: =FETCHCOMMENT(G52) -> GEOCON CONSULTANTS INC PSOMAS HDR CONSTRUCTION | I52: 3,6
A53: VSCE, INC. | C53: ='[1]DPAC A&E Worksheet'!G206 -> 3842284.72 | D53: M | E53: 4 | F53: =FETCHCOMMENT(E53) -> 59A1319 59A1325 59A1324 06A3121 | G53: 2 | H53: =FETCHCOMMENT(G53) -> PARSONS TRANSPORTATION GROUP, INC. HDR CONSTRUCTION CONTROL CORPORATION | I53: 6,59
A54: VST ENGINEERING, INC. | C54: ='[1]DPAC A&E Worksheet'!G212 -> 470000 | D54: M | E54: 1 | F54: =FETCHCOMMENT(E54) -> 59A1319 | G54: 1 | H54: =FETCHCOMMENT(G54) -> PARSONS TRANSPORTATION GROUP, INC. | I54: 59
C55: . | F55: =FETCHCOMMENT(E55) ->  | H55: =FETCHCOMMENT(G55) -> 
A57: Native American | C57: Dollars | D57: M/F | E57: # of Contracts | F57: Contract # | G57: # of Primes | H57: Prime Name | I57: Districts
A58: FMF PANDION | C58: ='[1]DPAC A&E Worksheet'!W10 -> 580000 | D58: M | E58: 1 | F58: =FETCHCOMMENT(E58) -> 04A7117 | G58: 1 | H58: =FETCHCOMMENT(G58) -> HDR Engineering, Inc. | I58: 4
A59: GERONIMO ENGINEERING | C59: ='[1]DPAC A&E Worksheet'!W22 -> 290000 | D59: M | E59: 1 | F59: =FETCHCOMMENT(E59) -> 04A7117 | G59: 1 | H59: =FETCHCOMMENT(G59) -> HDR Engineering, Inc. | I59: 4
F60: =FETCHCOMMENT(E60) ->  | H60: =FETCHCOMMENT(G60) -> 
A62: African American | C62: Dollars | D62: M/F | E62: # of Contracts | F62: Contract # | G62: # of Primes | H62: Prime Name | I62: Districts
A63: ACTIVEWAYZ ENGINEERING INC | C63: ='[1]DPAC A&E Worksheet'!AI8 -> 1450000 | D63: M | E63: 1 | F63: =FETCHCOMMENT(E63) -> 04A7117 | G63: 1 | H63: =FETCHCOMMENT(G63) -> HDR Engineering, Inc. | I63: 4
A64: ANCHOR ENGINEERING, INC. | C64: ='[1]DPAC A&E Worksheet'!AC20 -> 705000 | D64: F | E64: 1 | F64: =FETCHCOMMENT(E64) -> 59A1319 | G64: 1 | H64: =FETCHCOMMENT(G64) -> PARSONS TRANSPORTATION GROUP, INC. | I64: 59
A65: APEX ENGINEERING | C65: ='[1]DPAC A&E Worksheet'!AI15 -> 450292.9 | D65: M | E65: 1 | F65: =FETCHCOMMENT(E65) -> 08A3848 | G65: 1 | H65: =FETCHCOMMENT(G65) -> NV5 INC | I65: 8
A66: BIOMASS | C66: ='[1]DPAC A&E Worksheet'!AI28 -> 3155000 | D66: M | E66: 3 | F66: =FETCHCOMMENT(E66) -> 04A7044 04A7071 04A7106 | G66: 2 | H66: =FETCHCOMMENT(G66) -> KLEINFELDER, INC. AECOM TECHNICAL SERVICES, INC. | I66: 4
A67: DAVIS & ASSOCIATES | C67: ='[1]DPAC A&E Worksheet'!AC32 -> 610000 | D67: F | E67: 2 | F67: =FETCHCOMMENT(E67) -> 04A7044 04A7071 | G67: 1 | H67: =FETCHCOMMENT(G67) -> KLEINFELDER, INC. | I67: 4
A68: GREGG DRILLING LLC | C68: ='[1]DPAC A&E Worksheet'!AI43 -> 430268.42 | D68: M | E68: 2 | F68: =FETCHCOMMENT(E68) -> 03A3892 07A6010 | G68: 2 | H68: =FETCHCOMMENT(G68) -> GEOCON CONSULTANTS INC GEOSYNTEC CONSULTANTS | I68: 3,7
F69: =FETCHCOMMENT(E69) ->  | H69: =FETCHCOMMENT(G69) -> 
A71: Sub Cont Asian | C71: Dollars | D71: M/F | E71: # of Contracts | F71: Contract # | G71: # of Primes | H71: Prime Name | I71: Districts
A72: AMC, INC. | C72: ='[1]DPAC A&E Worksheet'!AQ14 -> 1770169.49 | D72: M | E72: 5 | F72: =FETCHCOMMENT(E72) -> 59A1338 59A1336 07A6009 07A6021 07A6016 | G72: 4 | H72: =FETCHCOMMENT(G72) -> AMC, INC. ATLAS TECHNICAL CONSULTANTS JACOBS PROJECT MANAGEMENT, INC. TRC ENGINEERS INC | I72: 7,59
A73: ENTERRIS ASSOCIATES, INC. | C73: ='[1]DPAC A&E Worksheet'!AQ26 -> 100000 | D73: M | E73: 1 | F73: =FETCHCOMMENT(E73) -> 11A3999 | G73: 1 | H73: =FETCHCOMMENT(G73) -> KLEINFELDER CONSTRUCTION SERVICES, INC. | I73: 11
A74: FULCRUM CONSULTANTS INC | C74: ='[1]DPAC A&E Worksheet'!AQ34 -> 478000 | D74: M | E74: 3 | F74: =FETCHCOMMENT(E74) -> 12A2206 12A2210 07A6021 | G74: 3 | H74: =FETCHCOMMENT(G74) -> FOUNTAINHEAD CONSULTING HDR Engineering, Inc. TRC ENGINEERS INC | I74: 7,12
A75: GEODE ENVIRONMENTAL | C75: ='[1]DPAC A&E Worksheet'!AM9 -> 335642.15 | D75: F | E75: 1 | F75: =FETCHCOMMENT(E75) -> 09A1060 | G75: 1 | H75: =FETCHCOMMENT(G75) -> RINCON | I75: 9
A76: GRIT FORCE | C76: ='[1]DPAC A&E Worksheet'!AQ41 -> 4363659 | D76: M | E76: 1 | F76: =FETCHCOMMENT(E76) -> 59A1336 | G76: 1 | H76: =FETCHCOMMENT(G76) -> ATLAS TECHNICAL CONSULTANTS | I76: 59
A77: IQON ENGINEERS INC | C77: ='[1]DPAC A&E Worksheet'!AQ48 -> 270000 | D77: M | E77: 1 | F77: =FETCHCOMMENT(E77) -> 07A6021 | G77: 1 | H77: =FETCHCOMMENT(G77) -> TRC ENGINEERS INC | I77: 7
A78: REDDY ANTHROPOLOGY CONSULTING | C78: ='[1]DPAC A&E Worksheet'!AM21 -> 280016.2 | D78: F | E78: 1 | F78: =FETCHCOMMENT(E78) -> 11A3999 | G78: 1 | H78: =FETCHCOMMENT(G78) -> KLEINFELDER CONSTRUCTION SERVICES, INC. | I78: 11
A79: REDDY ENGINEERING | C79: ='[1]DPAC A&E Worksheet'!AQ59 -> 700000 | D79: M | E79: 1 | F79: =FETCHCOMMENT(E79) -> 06A3140 | G79: 1 | H79: =FETCHCOMMENT(G79) -> FAR WESTERN ANTHOROPOLOGICAL | I79: 6
A80: S2 ENGINEERING | C80: ='[1]DPAC A&E Worksheet'!AQ79 -> 17260402.22 | D80: M | E80: 9 | F80: =FETCHCOMMENT(E80) -> 12A2210 59A1332 59A1338 59A1336 59A1337 07A6009 07A6088 04A7232 08A3848 | G80: 8 | H80: =FETCHCOMMENT(G80) -> HDR Engineering, Inc. MNS ENGINEERS, INC. WSP USA ENVIRONMENT & INFRASTRUCTURE, INC. ALTAS TECHINICAL CONSULTANTS KLEINFELDER INC JACOBS PROJECT MANAGEMENT, INC. S2 ENGINEERING NV5 INC | I80: 4,7,8,12,59
A81: SAMSA ENGINEERING | C81: ='[1]DPAC A&E Worksheet'!AM32 -> 726439.35 | D81: F | E81: 2 | F81: =FETCHCOMMENT(E81) -> 12A2210 08A3848 | G81: 2 | H81: =FETCHCOMMENT(G81) -> HDR Engineering, Inc. NV5 INC | I81: 8,12
A82: SKYLINE CONSULTANTS | C82: ='[1]DPAC A&E Worksheet'!AM46 -> 1086439.35 | D82: F | E82: 4 | F82: =FETCHCOMMENT(E82) -> 12A2203 12A2210 07A6016 08A3848 | G82: 3 | H82: =FETCHCOMMENT(G82) -> JACOBS PROJECT MANAGEMENT HDR Engineering, Inc. NV5 INC | I82: 7,8,12
F83: =FETCHCOMMENT(E83) ->  | H83: =FETCHCOMMENT(G83) -> 
A85: Asian Pacific | C85: Dollars | D85: M/F | E85: # of Contracts | F85: Contract # | G85: # of Primes | H85: Prime Name | I85: Districts
A86: ALIQUOT ASSOCIATES | C86: ='[1]DPAC A&E Worksheet'!O7 -> 1450000 | D86: M | E86: 1 | F86: =FETCHCOMMENT(E86) -> 04A7117 | G86: 1 | H86: =FETCHCOMMENT(G86) -> HDR Engineering, Inc. | I86: 4
A87: AMC CONSULTING ENGINEERS INC | C87: ='[1]DPAC A&E Worksheet'!O18 -> 1785000 | D87: M | E87: 2 | F87: =FETCHCOMMENT(E87) -> 59A1324 59A1325 | G87: 1 | H87: =FETCHCOMMENT(G87) -> HDR CONSTRUCTION CONTROL CORPORATION | I87: 59
A88: ANALYZER INTERNATIONAL | C88: ='[1]DPAC A&E Worksheet'!O35 -> 1836000 | D88: M | E88: 3 | F88: =FETCHCOMMENT(E88) -> 59A1324 59A1325 12A2210 | G88: 2 | H88: =FETCHCOMMENT(G88) -> HDR CONSTRUCTION CONTROL CORPORATION HDR Engineering, Inc. | I88: 12,59
A89: ASSET LABORATORIES | C89: ='[1]DPAC A&E Worksheet'!K6 -> 1342684.2 | D89: F | E89: 2 | F89: =FETCHCOMMENT(E89) -> 03A3892 07A6010 | G89: 2 | H89: =FETCHCOMMENT(G89) -> GEOCON CONSULTANTS INC GEOSYNTEC CONSULTANTS | I89: 3,7
A90: C2PM | C90: ='[1]DPAC A&E Worksheet'!K20 -> 500000 | D90: F | E90: 1 | F90: =FETCHCOMMENT(E90) -> 11A3999 | G90: 1 | H90: =FETCHCOMMENT(G90) -> KLEINFELDER CONSTRUCTION SERVICES, INC. | I90: 11
A91: CALIFORNIA BARRICADE INC | C91: ='[1]DPAC A&E Worksheet'!O40 -> 160000 | D91: M | E91: 1 | F91: =FETCHCOMMENT(E91) -> 07A6010 | G91: 1 | H91: =FETCHCOMMENT(G91) -> GEOSYNTEC CONSULTANTS | I91: 7
A92: CHAUDHARY & ASSOCIATES | C92: ='[1]DPAC A&E Worksheet'!O48 -> 1965918.4 | D92: M | E92: 3 | F92: =FETCHCOMMENT(E92) -> 03A3789 59A1330 07A6010 | G92: 3 | H92: =FETCHCOMMENT(G92) -> CHAUDHARY & ASSOCIATES TOWILL INC GEOSYNTEC CONSULTANTS | I92: 3,7,59
A93: CL SURVEYING AND MAPPING | C93: ='[1]DPAC A&E Worksheet'!O59 -> 360000 | D93: M | E93: 1 | F93: =FETCHCOMMENT(E93) -> 07A6087 | G93: 1 | H93: =FETCHCOMMENT(G93) -> MICHAEL BAKER INTERNATIONAL INC | I93: 7
A94: DYNAMIC ENGINEERING SERVICES | C94: ='[1]DPAC A&E Worksheet'!K26 -> 51000 | D94: F | E94: 1 | F94: =FETCHCOMMENT(E94) -> 12A2210 | G94: 1 | H94: =FETCHCOMMENT(G94) -> HDR Engineering, Inc. | I94: 12
A95: GEOSPATIAL PROFESSIONAL | C95: ='[1]DPAC A&E Worksheet'!K31 -> 960613.5 | D95: F | E95: 1 | F95: =FETCHCOMMENT(E95) -> 59A1330 | G95: 1 | H95: =FETCHCOMMENT(G95) -> TOWILL INC | I95: 59
A96: INTERPHASE ENVIRONMENTAL INC | C96: ='[1]DPAC A&E Worksheet'!K39 -> 240000 | D96: F | E96: 1 | F96: =FETCHCOMMENT(E96) -> 07A6010 | G96: 1 | H96: =FETCHCOMMENT(G96) -> GEOSYNTEC CONSULTANTS | I96: 7
A97: KCM ENGINEERING, INC. | C97: ='[1]DPAC A&E Worksheet'!O76 -> 4676098.4 | D97: M | E97: 6 | F97: =FETCHCOMMENT(E97) -> 59A1319 59A1324 59A1325 59A1332 03A3914 59A1336 | G97: 5 | H97: =FETCHCOMMENT(G97) -> PARSONS TRANSPORTATION GROUP, INC. HDR CONSTRUCTION CONTROL CORPORATION MNS ENGINEERS, INC. PSOMAS ATLAS TECHNICAL CONSULTANTS | I97: 3,59
A98: MOZAMO ENGINEERING INC | C98: ='[1]DPAC A&E Worksheet'!K57 -> 8407434.58 | D98: F | E98: 7 | F98: =FETCHCOMMENT(E98) -> 59A1324 59A1325 59A1332 59A1338 03A3914 06A3121 59A1336 | G98: 5 | H98: =FETCHCOMMENT(G98) -> HDR CONSTRUCTION CONTROL CORPORATION MNS ENGINEERS, INC. WSP USA ENVIRONMENT & INFRASTRUCTURE, INC. PSOMAS ATLAS TECHNICAL CONSULTANTS | I98: 3,6,59
A99: PARK ENGINEERING, INC. | C99: ='[1]DPAC A&E Worksheet'!O82 -> 669185.48 | D99: M | E99: 1 | F99: =FETCHCOMMENT(E99) -> 59A1332 | G99: 1 | H99: =FETCHCOMMENT(G99) -> MNS ENGINEERS, INC. | I99: 59
A100: TRANSMAT | C100: ='[1]DPAC A&E Worksheet'!O97 -> 10629716.29 | D100: M | E100: 7 | F100: =FETCHCOMMENT(E100) -> 12A2206 08A3792 59A1338 59A1336 59A1337 07A6088 04A7232 | G100: 5 | H100: =FETCHCOMMENT(G100) -> FOUNTAINHEAD CONSULTING KLEINFELDER, INC. WSP USA ENVIRONMENT & INFRASTRUCTURE, INC. ATLAS TECHINICAL CONSULTANTS S2 ENGINEERING | I100: 4,7,8,12,59
A101: WEST KERN ENVIRONMENTAL | C101: ='[1]DPAC A&E Worksheet'!K74 -> 595784.3 | D101: F | E101: 1 | F101: =FETCHCOMMENT(E101) -> 06A3116 | G101: 1 | H101: =FETCHCOMMENT(G101) -> PARSONS TRANSPORTATION GROUP, INC. | I101: 6
F102: =FETCHCOMMENT(E102) ->  | H102: =FETCHCOMMENT(G102) -> 
A104: Non Minority Men | C104: Dollars | D104: M/F | E104: # of Contracts | F104: Contract # | G104: # of Primes | H104: Prime Name | I104: Districts
F105: =FETCHCOMMENT(E105) ->  | H105: =FETCHCOMMENT(G105) -> 
F106: =FETCHCOMMENT(E106) ->  | H106: =FETCHCOMMENT(G106) -> 
A108: Non Minority Women | C108: Dollars | D108: M/F | E108: # of Contracts | F108: Contract # | G108: # of Primes | H108: Prime Name | I108: Districts
A109: ALBAT | C109: ='[1]DPAC A&E Worksheet'!AU11 -> 4205393.2 | D109: F | E109: 4 | F109: =FETCHCOMMENT(E109) -> 11A3999 59A1338 03A3914 59A1336 | G109: 4 | H109: =FETCHCOMMENT(G109) -> KLEINFELDER CONSTRUCTION SERVICES, INC. WSP USA ENVIRONMENT & INFRASTRUCTURE, INC. PSOMAS HDR CONSTRUCTION CONTROL | I109: 3,11,59
A110: ALBION ENVIRONMENTAL INC | C110: ='[1]DPAC A&E Worksheet'!AU16 -> 896051.84 | D110: F | E110: 1 | F110: =FETCHCOMMENT(E110) -> 06A3140 | G110: 1 | H110: =FETCHCOMMENT(G110) -> FAR WESTERN ANTHROPOLOGICAL RESEARCH GROUP INC | I110: 6
A111: ALTA ARCHAEOLOGICAL CONSULTING | C111: ='[1]DPAC A&E Worksheet'!AU22 -> 1680000 | D111: F | E111: 1 | F111: =FETCHCOMMENT(E111) -> 04A7071 | G111: 1 | H111: =FETCHCOMMENT(G111) -> KLEINFELDER, INC. | I111: 4
A112: APPLIED TECHNOLOGY AND SCIENCE | C112: ='[1]DPAC A&E Worksheet'!AU27 -> 1110000 | D112: F | E112: 1 | F112: =FETCHCOMMENT(E112) -> 04A7044 | G112: 1 | H112: =FETCHCOMMENT(G112) -> KLEINFELDER, INC. | I112: 4
A113: ARCHAEO PALEO RESOURCES | C113: ='[1]DPAC A&E Worksheet'!AU32 -> 80000 | D113: F | E113: 1 | F113: =FETCHCOMMENT(E113) -> 07A6010 | G113: 1 | H113: =FETCHCOMMENT(G113) -> GEOSYNTEC CONSULTANTS INC | I113: 7
A114: AREA WEST ENVIRONMENTAL | C114: ='[1]DPAC A&E Worksheet'!AU39 -> 1794941.16 | D114: F | E114: 2 | F114: =FETCHCOMMENT(E114) -> 04A7106 06A3116 | G114: 2 | H114: =FETCHCOMMENT(G114) -> AECOM TECHNICAL SERVICES, INC. PARSONS TRANSPORTATION GROUP, INC. | I114: 4,6
A115: AZAD ENGINEERING PC | C115: ='[1]DPAC A&E Worksheet'!AU51 -> 3427284.72 | D115: F | E115: 4 | F115: =FETCHCOMMENT(E115) -> 59A1319 04A7117 03A3914 06A3121 | G115: 3 | H115: =FETCHCOMMENT(G115) -> PARSONS TRANSPORTATION GROUP, INC. HDR ENGINEERING INC PSOMAS | I115: 3,4,6,59
A116: BANCROFT CONSTRUCTION SERVICES | C116: ='[1]DPAC A&E Worksheet'!AU56 -> 335642.15 | D116: F | E116: 1 | F116: =FETCHCOMMENT(E116) -> 09A1060 | G116: 1 | H116: =FETCHCOMMENT(G116) -> RINCON | I116: 9
A117: BENNETT ENGINEERING SERVICES | C117: ='[1]DPAC A&E Worksheet'!AU64 -> 1448968.95 | D117: F | E117: 1 | F117: =FETCHCOMMENT(E117) -> 03A3928 | G117: 1 | H117: =FETCHCOMMENT(G117) -> MARK THOMAS & COMPANY INC | I117: 3
A118: CONVEY, INC. | C118: ='[1]DPAC A&E Worksheet'!AU76 -> 270000 | D118: F | E118: 1 | F118: =FETCHCOMMENT(E118) -> 04A7106 | G118: 1 | H118: =FETCHCOMMENT(G118) -> AECOM TECHNICAL SERVICES, INC. | I118: 4
A119: CPM PARTNERS | C119: ='[1]DPAC A&E Worksheet'!AU71 -> 600000 | D119: F | E119: 1 | F119: =FETCHCOMMENT(E119) -> 11A3999 | G119: 1 | H119: =FETCHCOMMENT(G119) -> KLEINFELDER CONSTRUCTION SERVICES, INC. | I119: 11
A120: CQMS CONSTRUCTION QUALITY | C120: ='[1]DPAC A&E Worksheet'!AU82 -> 460000 | D120: F | E120: 2 | F120: =FETCHCOMMENT(E120) -> 12A2203 07A6009 | G120: 1 | H120: =FETCHCOMMENT(G120) -> JACOBS PROJECT MANAGMENT | I120: 7,12
A121: DAVID J. POWERS & ASSOCIATES, INC. | C121: ='[1]DPAC A&E Worksheet'!AU87 -> 1350000 | D121: F | E121: 1 | F121: =FETCHCOMMENT(E121) -> 04A7106 | G121: 1 | H121: =FETCHCOMMENT(G121) -> AECOM TECHNICAL SERVICES, INC. | I121: 4
A122: EMPOWER ENGINEERING | C122: ='[1]DPAC A&E Worksheet'!AU94 -> 1270571.18 | D122: F | E122: 4 | F122: =FETCHCOMMENT(E122) -> 59A1324 59A1325 03A3914 06A3121 | G122: 2 | H122: =FETCHCOMMENT(G122) -> HDR CONSTRUCTION CONTROL CORPORATION PSOMAS | I122: 3,6,59
A123: FCG CONSULTANTS INC | C123: ='[1]DPAC A&E Worksheet'!AU103 -> 270000 | D123: F | E123: 1 | F123: =FETCHCOMMENT(E123) -> 12A2203 | G123: 1 | H123: =FETCHCOMMENT(G123) -> JACOBS PROJECT MANAGMENT | I123: 12
A124: GALVIN PRESERVATION ASSOCIATES | C124: ='[1]DPAC A&E Worksheet'!AU109 -> 870000 | D124: F | E124: 1 | F124: =FETCHCOMMENT(E124) -> 04A7117 | G124: 1 | H124: =FETCHCOMMENT(G124) -> HDR Engineering, Inc. | I124: 4
A125: GATEWAY PACIFIC | C125: ='[1]DPAC A&E Worksheet'!AU115 -> 400000 | D125: F | E125: 1 | F125: =FETCHCOMMENT(E125) -> 11A3999 | G125: 1 | H125: =FETCHCOMMENT(G125) -> KLEINFELDER CONSTRUCTION SERVICES, INC. | I125: 11
A126: INTEGRATED ENGINEERING | C126: ='[1]DPAC A&E Worksheet'!AU120 -> 210000 | D126: F | E126: 1 | F126: =FETCHCOMMENT(E126) -> 07A6009 | G126: 1 | H126: =FETCHCOMMENT(G126) -> JACOBS PROJECT MANAGMENT | I126: 7
A127: KEISH ENVIRONMENTAL | C127: ='[1]DPAC A&E Worksheet'!AU126 -> 540000 | D127: F | E127: 1 | F127: =FETCHCOMMENT(E127) -> 04A7106 | G127: 1 | H127: =FETCHCOMMENT(G127) -> AECOM TECHNICAL SERVICES, INC. | I127: 4
A128: MERRIL MORRIS PARTNERS | C128: ='[1]DPAC A&E Worksheet'!AU133 -> 460571.18 | D128: F | E128: 1 | F128: =FETCHCOMMENT(E128) -> 06A3121 | G128: 1 | H128: =FETCHCOMMENT(G128) -> HDR CONSTRUCTION CONTROL COMPANY | I128: 6
A129: MOUNTAINVIEW BIOLOGICAL | C129: ='[1]DPAC A&E Worksheet'!AU139 -> 335642.15 | D129: F | E129: 1 | F129: =FETCHCOMMENT(E129) -> 09A1060 | G129: 1 | H129: =FETCHCOMMENT(G129) -> RINCON | I129: 9
A130: RUBICON ENGINEERING | C130: ='[1]DPAC A&E Worksheet'!AU150 -> 240000 | D130: F | E130: 1 | F130: =FETCHCOMMENT(E130) -> 07A6010 | G130: 1 | H130: =FETCHCOMMENT(G130) -> GEOSYNTEC CONSULTANTS INC | I130: 7
A131: TAIL WIND CONSTRUCTION SUPPLY | C131: ='[1]DPAC A&E Worksheet'!AU158 -> 300000 | D131: F | E131: 1 | F131: =FETCHCOMMENT(E131) -> 03A3914 | G131: 1 | H131: =FETCHCOMMENT(G131) -> PSOMAS | I131: 3
A132: Z&K CONSULTANTS, INC. | C132: ='[1]DPAC A&E Worksheet'!AU168 -> 669185.48 | D132: F | E132: 1 | F132: =FETCHCOMMENT(E132) -> 59A1332 | G132: 1 | H132: =FETCHCOMMENT(G132) -> MNS ENGINEERS, INC. | I132: 59
F133: =FETCHCOMMENT(E133) ->  | H133: =FETCHCOMMENT(G133) -> 
F134: =FETCHCOMMENT(E134) ->  | H134: =FETCHCOMMENT(G134) -> 
A138: Prime Name | C138: # of Contracts | D138: Contract # | E138: Prime Name | F138: # of Contracts | G138: Contract # | H138: Prime Name | I138: # of Contracts | J138: Contract #
A139: AECOM TECHNICAL SERVICES, INC. | C139: 1 | D139: =FETCHCOMMENT(C139) -> 04A7106 | E139: KLEINFELDER, INC. | F139: 6 | G139: =FETCHCOMMENT(F139) -> 04A7044 11A3999 04A7071 08A3792 59A1337 07A6088 | H139: TRC ENGINEERS | I139: 1 | J139: =FETCHCOMMENT(I139) -> 07A6021
A140: ATLAS TECHNICAL CONSULTANTS | C140: 1 | D140: =FETCHCOMMENT(C140) -> 59A1336 | E140: MARK THOMAS & COMPANY | F140: 1 | G140: =FETCHCOMMENT(F140) -> 03A3928 | H140: WSP USA ENVIRONMENT & INFRASTRUCTURE, INC. | I140: 1 | J140: =FETCHCOMMENT(I140) -> 59A1338
A141: CHAUDHARY & ASSOCIATES INC | C141: 1 | D141: =FETCHCOMMENT(C141) -> 03A3789 | E141: MICHAEL BAKER INTERNATIONAL INC | F141: 1 | G141: =FETCHCOMMENT(F141) -> 07A6087
A142: FAR WESTERN ANTHROPOLOGICAL RESEARCH GROUP INC | C142: 1 | D142: =FETCHCOMMENT(C142) -> 06A3140 | E142: MNS ENGINEERS, INC. | F142: 1 | G142: =FETCHCOMMENT(F142) -> 59A1319 06A3116 12A2212 59A1332
A143: FOUNTAINHEAD CONSULTING CORPORATION | C143: 1 | D143: =FETCHCOMMENT(C143) -> 12A2206 | E143: NV5 INC | F143: 1 | G143: =FETCHCOMMENT(F143) -> 08A3848
A144: GEOCON CONSULTANTS INC | C144: 1 | D144: =FETCHCOMMENT(C144) -> 03A3892 | E144: PARSONS TRANSPORTATION GROUP, INC. | F144: 3 | G144: =FETCHCOMMENT(F144) -> 59A1319 06A3116 12A2212
A145: GEOSYNTEC CONSULTANTS | C145: 1 | D145: =FETCHCOMMENT(C145) -> 07A6010 | E145: PSOMAS | F145: 1 | G145: =FETCHCOMMENT(F145) -> 03A3914
A146: HDR CONSTRUCTION CONTROL CORPORATION | C146: 3 | D146: =FETCHCOMMENT(C146) -> 59A1324 59A1325 06A3121 | E146: RINCON | F146: 1 | G146: =FETCHCOMMENT(F146) -> 09A1060
A147: HDR ENGINEERING INC | C147: 2 | D147: =FETCHCOMMENT(C147) -> 04A7117 12A2210 | E147: S2 ENGINEERING | F147: 1 | G147: =FETCHCOMMENT(F147) -> 04A7232
A148: JACOBS PROJECT MANAGEMENT | C148: 3 | D148: =FETCHCOMMENT(C148) -> 12A2203 07A6009 07A6016 | E148: TOWILL INC | F148: 1 | G148: =FETCHCOMMENT(F148) -> 59A1330
A150: To see names of prime contractors/contract numbers, place your cursor on comment tab (red triangle).
A151: Caltrans DBE Reports: http://www.dot.ca.gov/hq/bep/reports.htm
